bitfinex/quotes_SOLUSD_20230120
["timestamp","ask_amount","ask_price","bid_price","bid_amount"]
[1674251895564,10.0,24.363,24.339,32.70211471]
[1674251895778,10.0,24.363,24.34,0.96]
[1674251895989,10.0,24.363,24.34,35.49208248]
[1674251896182,10.0,24.363,24.341,32.70211471]
[1674251896399,10.0,24.363,24.342,0.96]
[1674251896722,10.0,24.363,24.336,32.70211471]
[1674251897037,10.0,24.363,24.343,32.70211471]
[1674251897770,10.0,24.363,24.331,125.6]
[1674251897962,10.0,24.363,24.338,32.70211471]
[1674251898393,10.0,24.363,24.338,32.20211471]
[1674251898612,33.75576951,24.363,24.322,10.0]
[1674251898815,2.6553,24.362,24.326,20.0]
[1674251899129,2.6553,24.362,24.331,125.6]
[1674251899130,30.79,24.361,24.331,125.6]
[1674251899328,23.02,24.37,24.333,135.6]
[1674251899540,10.0,24.368,24.334,20.0]
[1674251899751,10.0,24.368,24.335,135.6]
[1674251899977,10.0,24.368,24.336,0.96]
[1674251900183,10.0,24.368,24.341,41.81]
[1674251900379,10.0,24.368,24.343,41.81]
[1674251900583,10.0,24.368,24.344,37.96]
[1674251900803,10.0,24.368,24.344,216.27310243]
[1674251901010,10.0,24.368,24.345,32.65878137]
[1674251901222,30.78,24.374,24.347,167.41]
[1674251901448,40.77,24.377,24.35,125.6]
[1674251901758,10.0,24.377,24.352,125.6]
[1674251901977,10.0,24.377,24.354,10.0]
[1674251902169,10.0,24.377,24.355,20.0]
[1674251902377,10.0,24.377,24.356,142.6]
[1674251902579,10.0,24.377,24.357,0.96]
[1674251902804,10.0,24.378,24.357,179.27310243]
[1674251903017,10.0,24.378,24.358,17.0]
[1674251903243,10.0,24.378,24.359,126.56]
[1674251903554,10.0,24.378,24.36,17.0]
[1674251903862,10.0,24.378,24.36,47.04393607]
[1674251904081,10.0,24.378,24.361,31.00393607]
[1674251904291,10.0,24.378,24.362,17.0]
[1674251904605,10.0,24.378,24.363,0.96]
[1674251904790,10.0,24.378,24.363,42.77]
[1674251905007,10.0,24.378,24.364,37.0]
[1674251905224,10.0,24.378,24.365,0.96]
[1674251905650,10.0,24.378,24.358,30.04393607]
[1674251905969,2.6553,24.377,24.335,10.0]
[1674251906177,30.77,24.376,24.343,30.04393607]
[1674251906489,30.77,24.376,24.338,135.6]
[1674251906490,10.0,24.374,24.338,135.6]
[1674251906686,10.0,24.374,24.339,20.0]
[1674251906687,33.4353,24.373,24.339,20.0]
[1674251906897,10.0,24.372,24.34,41.81]
[1674251907112,30.78,24.371,24.342,41.81]
[1674251907324,10.0,24.37,24.343,61.81]
[1674251907561,30.78,24.369,24.343,61.81]
[1674251907855,10.0,24.368,24.343,20.0]
[1674251908070,10.0,24.368,24.334,145.6]
[1674251908483,30.79,24.367,24.334,145.6]
[1674251908697,10.0,24.366,24.334,198.31310243]
[1674251908910,10.0,24.366,24.335,167.41]
[1674251909118,10.0,24.366,24.337,41.81]
[1674251909337,10.0,24.366,24.335,125.6]
[1674251909338,10.0,24.366,24.339,41.81]
[1674251909528,10.0,24.366,24.34,20.0]
[1674251910160,20.0,24.365,24.335,125.6]
[1674251910474,10.0,24.364,24.329,14.53208248]
[1674251910695,30.79,24.363,24.336,14.53208248]
[1674251910894,10.0,24.362,24.336,14.53208248]
[1674251911100,10.0,24.364,24.338,167.41]
[1674251911342,10.0,24.364,24.34,41.81]
[1674251911734,10.0,24.364,24.337,52.71310243]
[1674251911948,10.0,24.364,24.309,20.0]
[1674251912157,33.4453,24.363,24.323,61.81]
[1674251912389,10.0,24.361,24.323,61.81]
[1674251912600,12.6553,24.361,24.329,41.81]
[1674251912788,10.0,24.361,24.331,125.6]
[1674251913207,10.0,24.361,24.332,56.3099759]
[1674251913417,10.0,24.361,24.332,41.81]
[1674251913635,10.0,24.361,24.332,109.02307833]
[1674251913852,10.0,24.361,24.333,56.3099759]
[1674251914042,10.0,24.361,24.335,41.81]
[1674251914254,10.0,24.361,24.337,167.41]
[1674251914576,10.0,24.361,24.339,41.81]
[1674251914779,10.0,24.361,24.341,41.81]
[1674251914990,10.0,24.361,24.343,41.81]
[1674251915196,10.0,24.361,24.344,17.0]
[1674251915422,10.0,24.361,24.345,20.0]
[1674251915617,10.0,24.361,24.346,17.96]
[1674251915831,10.0,24.361,24.336,14.4999759]
[1674251916044,10.0,24.361,24.312,69.23089665]
[1674251916247,10.0,24.361,24.337,52.71310243]
[1674251916590,10.0,24.361,24.33,14.46787327]
[1674251916897,40.79,24.361,24.33,14.46787327]
[1674251917091,10.0,24.361,24.331,41.81]
[1674251917302,40.79,24.361,24.333,41.81]
[1674251917523,43.4453,24.361,24.334,20.0]
[1674251918143,25.6753,24.36,24.318,125.6]
[1674251918372,25.6753,24.36,24.319,20.0]
[1674251918373,43.4553,24.359,24.319,20.0]
[1674251918589,22.6553,24.358,24.311,135.6]
[1674251918806,10.0,24.356,24.311,135.6]
[1674251918997,53.4553,24.355,24.311,135.6]
[1674251919209,23.02,24.35,24.313,125.6]
[1674251919414,33.4653,24.349,24.313,125.6]
[1674251919634,2.6553,24.348,24.313,125.6]
[1674251919843,30.81,24.347,24.301,125.6]
[1674251920052,22.6553,24.346,24.301,125.6]
[1674251920259,43.4653,24.345,24.311,41.81]
[1674251920465,32.6553,24.344,24.311,41.81]
[1674251920693,33.4753,24.343,24.301,45.08643576]
[1674251920908,12.6553,24.342,24.301,125.6]
[1674251921123,12.6553,24.342,24.302,20.0]
[1674251921309,12.6553,24.342,24.311,41.81]
[1674251921733,12.6553,24.342,24.313,41.81]
[1674251921942,12.6553,24.342,24.314,20.0]
[1674251922389,67.23106951,24.342,24.314,20.0]
[1674251922694,12.6553,24.342,24.314,20.0]
[1674251922906,12.6553,24.342,24.305,41.81]
[1674251923114,12.6553,24.342,24.307,41.81]
[1674251923429,12.6553,24.342,24.309,41.81]
[1674251923645,33.88397341,24.341,24.311,41.81]
[1674251923858,33.4753,24.34,24.312,20.0]
[1674251924042,12.6553,24.339,24.31,20.0]
[1674251924252,2.6553,24.338,24.31,20.0]
[1674251924464,2.6553,24.338,24.305,41.81]
[1674251924670,2.6553,24.338,24.306,61.81]
[1674251925323,2.6553,24.338,24.306,61.31]
[1674251925518,2.6553,24.338,24.306,19.5]
[1674251925728,2.6553,24.338,24.303,41.81]
[1674251926053,2.6553,24.338,24.305,41.81]
[1674251926264,2.6553,24.338,24.306,59.77]
[1674251926585,2.6553,24.338,24.307,17.0]
[1674251926777,2.6553,24.338,24.307,10.0]
[1674251926999,2.6553,24.338,24.306,41.81]
[1674251927216,2.6553,24.338,24.307,20.0]
[1674251927427,2.6553,24.338,24.306,61.81]
[1674251927823,2.6553,24.338,24.307,71.28801781]
[1674251928032,10.0,24.346,24.307,71.28801781]
[1674251928033,10.0,24.346,24.31,22.92]
[1674251928253,10.0,24.346,24.312,10.0]
[1674251928584,10.0,24.346,24.314,10.0]
[1674251928791,10.0,24.346,24.315,20.0]
[1674251928978,10.0,24.346,24.316,17.96]
[1674251929188,10.0,24.346,24.318,10.0]
[1674251929406,10.0,24.346,24.319,17.96]
[1674251929719,10.0,24.346,24.32,20.0]
[1674251929930,10.0,24.346,24.321,17.96]
[1674251930156,10.0,24.346,24.322,20.0]
[1674251930677,10.0,24.346,24.317,14.46787327]
[1674251930678,10.0,24.346,24.319,29.47801781]
[1674251930870,10.0,24.346,24.318,20.0]
[1674251930871,10.0,24.346,24.32,20.0]
[1674251931085,10.0,24.346,24.319,14.46787327]
[1674251931297,10.0,24.346,24.32,20.0]
[1674251931504,10.0,24.346,24.321,17.0]
[1674251931714,10.0,24.346,24.322,20.0]
[1674251932029,10.0,24.346,24.323,17.0]
[1674251932239,10.0,24.346,24.324,20.0]
[1674251932462,20.0,24.344,24.319,14.46787327]
[1674251932674,40.82,24.343,24.311,42.1397691]
[1674251932870,40.82,24.343,24.312,34.46787327]
[1674251932871,10.0,24.343,24.312,34.46787327]
[1674251933089,10.0,24.343,24.312,14.46787327]
[1674251933609,30.82,24.342,24.304,10.0]
[1674251933827,30.82,24.342,24.305,14.46787327]
[1674251934037,30.82,24.342,24.306,167.41]
[1674251934239,10.0,24.341,24.307,10.0]
[1674251934450,10.0,24.341,24.307,150.06787327]
[1674251934671,10.0,24.341,24.308,34.46787327]
[1674251934871,2.6553,24.34,24.308,20.0]
[1674251935089,10.0,24.339,24.308,20.0]
[1674251935296,12.6553,24.339,24.308,20.0]
[1674251935508,58.35555154,24.339,24.308,20.0]
[1674251935715,58.35555154,24.339,24.305,20.0]
[1674251935923,79.14088487,24.338,24.305,20.0]
[1674251936136,79.14088487,24.338,24.306,10.0]
[1674251936338,45.66558487,24.337,24.291,125.6]
[1674251936547,50.83,24.336,24.296,14.46787327]
[1674251936863,10.0,24.335,24.3,125.6]
[1674251937075,20.0,24.334,24.304,51.81]
[1674251937281,20.0,24.334,24.304,41.81]
[1674251937492,50.83,24.334,24.304,41.81]
[1674251937831,10.0,24.333,24.304,41.81]
[1674251938146,10.0,24.333,24.301,167.41]
[1674251938327,10.0,24.333,24.303,41.81]
[1674251938762,30.83,24.332,24.304,71.28801781]
[1674251938982,10.0,24.333,24.304,71.28801781]
[1674251939172,10.0,24.333,24.305,50.43801781]
[1674251939395,10.0,24.333,24.305,20.96]
[1674251939593,10.0,24.333,24.306,17.0]
[1674251939813,10.0,24.333,24.307,0.96]
[1674251941080,30.83,24.332,24.307,0.96]
[1674251941708,30.83,24.332,24.305,20.0]
[1674251941907,30.83,24.332,24.303,41.81]
[1674251942119,10.0,24.331,24.304,61.31]
[1674251942446,30.83,24.33,24.304,41.31]
[1674251942659,20.0,24.329,24.294,41.81]
[1674251942870,10.0,24.327,24.294,41.81]
[1674251943078,53.4953,24.326,24.294,41.81]
[1674251943403,12.6553,24.325,24.28,22.87]
[1674251943612,12.6553,24.325,24.282,167.41]
[1674251943613,53.4953,24.324,24.282,167.41]
[1674251943825,2.6553,24.323,24.282,167.41]
[1674251944042,10.0,24.321,24.284,41.81]
[1674251944432,30.85,24.32,24.284,41.81]
[1674251944768,10.0,24.319,24.284,41.81]
[1674251945093,82.22326172,24.319,24.281,41.81]
[1674251945274,111.62354871,24.318,24.281,41.81]
[1674251945485,10.0,24.317,24.281,41.81]
[1674251945696,50.85,24.316,24.283,41.81]
[1674251945922,10.0,24.315,24.283,41.81]
[1674251946131,30.85,24.314,24.283,41.81]
[1674251946445,126.32398972,24.314,24.283,41.81]
[1674251946661,85.47398972,24.313,24.28,41.81]
[1674251946874,30.86,24.312,24.28,41.81]
[1674251947069,10.0,24.311,24.28,41.81]
[1674251947282,30.86,24.31,24.271,14.46787327]
[1674251947491,53.78,24.31,24.279,99.8061873]
[1674251947693,129.16482705,24.31,24.28,41.81]
[1674251947902,85.38482705,24.309,24.28,41.81]
[1674251948108,30.86,24.308,24.279,99.8061873]
[1674251948324,106.24482705,24.308,24.279,99.8061873]
[1674251948535,10.0,24.306,24.28,20.0]
[1674251948746,30.86,24.305,24.281,41.81]
[1674251948965,21.39,24.3,24.279,39.8061873]
[1674251949184,50.87,24.299,24.279,0.0061873]
[1674251949381,10.0,24.298,24.279,0.0061873]
[1674251949593,50.87,24.297,24.279,0.0061873]
[1674251949802,74.62576951,24.297,24.279,0.0061873]
[1674251950015,10.0,24.296,24.279,0.0061873]
[1674251950213,50.88,24.295,24.279,0.0061873]
[1674251950422,127.87374172,24.295,24.279,0.0061873]
[1674251950654,53.23797221,24.294,24.279,0.0061873]
[1674251950869,40.88,24.293,24.279,0.0061873]
[1674251951073,10.0,24.292,24.279,0.0061873]
[1674251951285,10.0,24.29,24.261,9.5061873]
[1674251951481,10.0,24.29,24.254,41.81]
[1674251951696,36.2317092,24.289,24.254,41.81]
[1674251951901,10.0,24.288,24.256,41.81]
[1674251952336,46.2317092,24.296,24.26,21.37]
[1674251952556,21.57,24.29,24.261,20.0]
[1674251952745,10.0,24.286,24.256,20.0]
[1674251953073,90.87104813,24.285,24.24,22.94]
[1674251953485,38.27974375,24.284,24.241,41.81]
[1674251953698,40.89,24.283,24.243,41.81]
[1674251953906,40.89,24.283,24.245,41.81]
[1674251953907,76.51444375,24.283,24.245,41.81]
[1674251954118,40.89,24.283,24.246,51.81]
[1674251954649,40.89,24.283,24.247,20.0]
[1674251954650,59.38021326,24.282,24.247,20.0]
[1674251954856,59.38021326,24.282,24.248,10.0]
[1674251954857,30.9,24.281,24.248,10.0]
[1674251955091,30.9,24.281,24.244,10.0]
[1674251955395,30.89,24.282,24.24,63.59843576]
[1674251955603,10.0,24.279,24.236,41.81]
[1674251955805,10.0,24.277,24.239,10.0]
[1674251956000,30.9,24.276,24.241,41.81]
[1674251956211,10.0,24.277,24.24,37.61787327]
[1674251956423,10.0,24.277,24.243,10.0]
[1674251956863,10.0,24.277,24.244,69.65964237]
[1674251957180,20.0,24.276,24.245,69.65964237]
[1674251957375,30.9,24.275,24.245,55.1917691]
[1674251957586,10.0,24.274,24.245,55.1917691]
[1674251957802,10.0,24.272,24.24,23.15]
[1674251958009,10.0,24.272,24.238,14.46787327]
[1674251958336,10.0,24.272,24.241,14.46787327]
[1674251958525,10.0,24.272,24.242,10.0]
[1674251958733,10.0,24.272,24.235,41.81]
[1674251959167,40.9,24.274,24.242,41.81]
[1674251959366,10.0,24.274,24.241,10.0]
[1674251959572,10.0,24.274,24.243,14.46787327]
[1674251960117,10.0,24.274,24.245,10.0]
[1674251960436,111.3195,24.276,24.246,35.42787327]
[1674251960636,111.3195,24.276,24.25,23.15]
[1674251960841,111.3195,24.276,24.251,20.0]
[1674251961051,10.0,24.275,24.251,20.0]
[1674251961265,10.0,24.275,24.252,55.1917691]
[1674251961474,10.0,24.275,24.253,20.0]
[1674251961685,10.0,24.275,24.253,17.96]
[1674251961889,10.0,24.275,24.254,82.58548825]
[1674251962103,10.0,24.284,24.255,17.96]
[1674251962322,10.0,24.284,24.255,148.76015491]
[1674251962523,10.0,24.284,24.256,113.45802818]
[1674251962730,10.0,24.284,24.258,10.0]
[1674251962943,10.0,24.284,24.259,20.0]
[1674251963152,10.0,24.284,24.26,27.96]
[1674251963361,10.0,24.284,24.261,20.0]
[1674251963565,10.0,24.284,24.262,17.96]
[1674251963782,10.0,24.284,24.263,20.0]
[1674251964099,10.0,24.284,24.264,48.82627915]
[1674251964315,10.0,24.284,24.265,20.0]
[1674251964538,10.0,24.284,24.266,17.96]
[1674251964945,10.0,24.284,24.266,0.96]
[1674251965375,10.0,24.284,24.266,30.27230915]
[1674251965568,30.89,24.282,24.247,10.0]
[1674251965778,30.89,24.282,24.249,10.0]
[1674251965779,10.0,24.281,24.249,10.0]
[1674251965994,10.0,24.281,24.25,22.96]
[1674251966210,10.0,24.281,24.252,10.0]
[1674251966620,10.0,24.281,24.254,10.0]
[1674251966839,30.9,24.28,24.255,20.0]
[1674251967044,20.9,24.28,24.255,20.0]
[1674251967254,20.9,24.28,24.255,50.27230915]
[1674251967477,10.0,24.279,24.255,20.0]
[1674251967685,30.9,24.278,24.25,50.27230915]
[1674251968004,10.0,24.277,24.256,30.27230915]
[1674251968209,30.9,24.276,24.256,30.27230915]
[1674251968834,10.0,24.275,24.256,30.27230915]
[1674251969360,23.13,24.27,24.22,23.31]
[1674251969575,30.91,24.269,24.221,2.63749]
[1674251969790,10.0,24.267,24.222,10.0]
[1674251970098,10.0,24.267,24.23,148.73]
[1674251970099,30.91,24.266,24.23,148.73]
[1674251970313,30.9,24.274,24.242,10.0]
[1674251970546,10.0,24.275,24.242,10.0]
[1674251970729,10.0,24.275,24.244,41.81]
[1674251970939,30.9,24.274,24.244,41.81]
[1674251971152,10.0,24.273,24.245,63.4350998]
[1674251971369,30.91,24.272,24.245,63.4350998]
[1674251971688,10.0,24.271,24.246,63.4350998]
[1674251972090,10.0,24.271,24.247,63.4350998]
[1674251972300,10.0,24.271,24.241,41.81]
[1674251972301,10.0,24.269,24.241,41.81]
[1674251972633,10.0,24.267,24.242,41.81]
[1674251972839,10.0,24.267,24.242,20.0]
[1674251973049,10.0,24.265,24.232,41.81]
[1674251973258,50.92,24.264,24.24,14.46787327]
[1674251973471,10.0,24.263,24.24,14.46787327]
[1674251973796,30.92,24.262,24.24,14.46787327]
[1674251973980,10.0,24.261,24.24,14.46787327]
[1674251974195,10.0,24.261,24.224,10.0]
[1674251974419,10.0,24.261,24.226,10.0]
[1674251974734,10.0,24.259,24.227,14.46787327]
[1674251974945,10.0,24.259,24.228,41.81]
[1674251975141,30.92,24.258,24.227,14.46787327]
[1674251975352,10.0,24.257,24.229,14.46787327]
[1674251975991,10.0,24.257,24.223,41.81]
[1674251976199,50.93,24.256,24.223,14.46787327]
[1674251976411,50.93,24.256,24.217,125.6]
[1674251976412,50.93,24.256,24.219,28.08544448]
[1674251976632,10.0,24.255,24.224,14.46787327]
[1674251976827,50.93,24.254,24.225,20.0]
[1674251977254,10.0,24.253,24.226,14.46787327]
[1674251977470,30.93,24.252,24.226,14.46787327]
[1674251977785,30.93,24.252,24.227,48.96722653]
[1674251978192,30.93,24.252,24.228,15.42787327]
[1674251978405,30.93,24.252,24.229,17.0]
[1674251978620,10.0,24.251,24.23,0.96]
[1674251978940,10.0,24.251,24.229,63.4350998]
[1674251979136,10.0,24.251,24.231,14.46787327]
[1674251979342,30.93,24.25,24.211,125.6]
[1674251979572,10.0,24.249,24.221,41.81]
[1674251980117,10.0,24.249,24.222,153.38414762]
[1674251980332,10.0,24.249,24.223,10.0]
[1674251980525,10.0,24.249,24.223,101.57414762]
[1674251980854,10.0,24.249,24.224,14.46787327]
[1674251981055,110.0304,24.252,24.225,10.96]
[1674251981467,10.0,24.25,24.226,14.46787327]
[1674251981797,30.94,24.249,24.227,28.13904782]
[1674251982207,30.94,24.249,24.228,14.46787327]
[1674251982425,30.92,24.262,24.229,41.81]
[1674251982642,40.92,24.263,24.23,0.96]
[1674251982855,10.0,24.263,24.23,175.49574654]
[1674251983041,10.0,24.263,24.232,10.0]
[1674251983251,10.0,24.263,24.233,37.96]
[1674251983465,10.0,24.263,24.236,41.81]
[1674251983669,10.0,24.263,24.238,41.81]
[1674251983884,30.91,24.268,24.24,41.81]
[1674251984106,10.0,24.27,24.242,41.81]
[1674251984298,40.91,24.27,24.243,61.81]
[1674251984512,10.0,24.263,24.244,0.96]
[1674251985038,10.0,24.263,24.221,10.0]
[1674251985250,54.67576951,24.262,24.245,31.34571448]
[1674251985455,30.92,24.262,24.228,14.46787327]
[1674251985684,9.5,24.261,24.228,14.46787327]
[1674251985887,30.92,24.26,24.228,14.46787327]
[1674251986318,10.0,24.259,24.228,14.46787327]
[1674251986534,30.92,24.258,24.228,14.46787327]
[1674251986735,30.92,24.258,24.229,89.21490697]
[1674251986954,10.0,24.257,24.229,31.34571448]
[1674251987181,10.0,24.257,24.23,31.34571448]
[1674251987396,10.0,24.257,24.229,14.46787327]
[1674251987916,10.0,24.257,24.23,49.30571448]
[1674251988108,10.0,24.257,24.231,20.0]
[1674251988314,10.0,24.257,24.232,17.96]
[1674251988545,10.0,24.255,24.232,49.30571448]
[1674251988743,50.93,24.254,24.232,57.86919249]
[1674251988954,50.93,24.254,24.233,31.34571448]
[1674251988955,10.0,24.253,24.233,31.34571448]
[1674251989165,30.43,24.252,24.233,31.34571448]
[1674251989372,10.0,24.253,24.234,57.86919249]
[1674251989589,10.0,24.253,24.234,72.33706576]
[1674251989807,10.0,24.253,24.235,45.81358775]
[1674251990017,10.0,24.253,24.235,103.68278024]
[1674251990215,10.0,24.253,24.236,103.68278024]
[1674251990427,10.0,24.253,24.237,17.96]
[1674251990646,10.0,24.253,24.237,121.64278024]
[1674251990862,10.0,24.253,24.238,103.68278024]
[1674251991056,10.0,24.253,24.239,17.96]
[1674251991270,10.0,24.253,24.239,49.30571448]
[1674251991485,10.0,24.253,24.24,31.34571448]
[1674251991697,10.0,24.253,24.241,17.96]
[1674251992121,10.0,24.253,24.241,49.30571448]
[1674251992327,10.0,24.255,24.241,49.30571448]
[1674251992535,10.0,24.255,24.241,31.34571448]
[1674251993996,10.0,24.255,24.242,17.96]
[1674251994436,10.0,24.255,24.236,31.34571448]
[1674251994638,50.43,24.254,24.236,31.34571448]
[1674251994845,10.0,24.253,24.236,31.34571448]
[1674251995056,10.0,24.251,24.236,31.34571448]
[1674251995274,30.93,24.25,24.212,10.0]
[1674251995483,10.0,24.249,24.211,125.6]
[1674251995802,10.0,24.247,24.212,56.27787327]
[1674251996022,10.0,24.247,24.212,41.81]
[1674251996023,30.94,24.246,24.212,41.81]
[1674251996322,30.0,24.245,24.206,24.46787327]
[1674251996541,40.94,24.244,24.206,24.46787327]
[1674251996848,10.0,24.243,24.207,41.81]
[1674251997040,30.94,24.242,24.209,41.81]
[1674251997245,10.0,24.241,24.208,177.25358775]
[1674251997457,10.0,24.239,24.21,41.65358775]
[1674251997899,10.0,24.239,24.212,41.81]
[1674251998358,10.0,24.239,24.213,14.46787327]
[1674251998541,113.4584,24.264,24.221,125.6]
[1674251998726,113.4584,24.264,24.23,23.13]
[1674251998931,40.42,24.261,24.231,61.81]
[1674251999160,9.5,24.261,24.231,173.49338737]
[1674251999372,40.42,24.261,24.232,58.83219488]
[1674251999692,9.5,24.261,24.233,34.46787327]
[1674252000004,113.4584,24.264,24.238,41.81]
[1674252000198,113.4584,24.264,24.24,41.81]
[1674252000406,113.4584,24.264,24.242,41.81]
[1674252000619,113.4584,24.264,24.244,41.81]
[1674252000834,113.4584,24.264,24.245,79.77]
[1674252001041,113.4584,24.264,24.246,17.0]
[1674252001245,10.0,24.268,24.246,31.46787327]
[1674252001461,40.9,24.275,24.247,136.56]
[1674252001788,30.9,24.278,24.252,10.0]
[1674252001998,30.89,24.286,24.254,135.6]
[1674252002235,30.89,24.286,24.255,20.96]
[1674252002431,30.89,24.286,24.256,17.0]
[1674252002632,10.0,24.285,24.259,41.81]
[1674252002864,10.0,24.285,24.26,17.96]
[1674252003070,10.0,24.285,24.261,20.0]
[1674252003278,10.0,24.285,24.262,17.96]
[1674252003495,10.0,24.285,24.263,20.0]
[1674252003706,10.0,24.297,24.27,23.13]
[1674252004020,10.0,24.297,24.271,17.96]
[1674252004231,10.0,24.297,24.272,20.0]
[1674252004421,10.0,24.297,24.273,17.96]
[1674252004633,10.0,24.297,24.274,20.0]
[1674252004840,10.0,24.297,24.275,17.96]
[1674252005067,10.0,24.297,24.275,110.83958076]
[1674252005366,10.0,24.297,24.276,107.34745403]
[1674252005599,10.0,24.297,24.277,17.96]
[1674252005802,10.0,24.297,24.277,54.16215027]
[1674252006120,10.0,24.297,24.278,36.20215027]
[1674252006344,10.0,24.297,24.279,17.96]
[1674252006526,10.0,24.297,24.28,43.13]
[1674252006740,10.0,24.297,24.29,23.13]
[1674252006957,10.0,24.307,24.29,23.13]
[1674252006958,10.0,24.305,24.291,20.0]
[1674252007158,10.0,24.307,24.291,20.0]
[1674252007159,10.0,24.307,24.292,17.0]
[1674252007367,30.84,24.323,24.293,20.96]
[1674252007584,30.84,24.323,24.295,41.81]
[1674252007798,23.13,24.35,24.294,17.0]
[1674252007799,10.0,24.322,24.3,23.13]
[1674252007993,10.0,24.322,24.31,23.13]
[1674252008205,10.0,24.322,24.311,20.0]
[1674252008412,30.81,24.347,24.312,17.96]
[1674252008625,30.81,24.347,24.313,20.0]
[1674252008840,10.0,24.335,24.314,17.0]
[1674252009062,10.0,24.335,24.315,20.0]
[1674252009278,9.5,24.335,24.316,17.96]
[1674252009480,9.5,24.335,24.316,32.42787327]
[1674252009694,9.5,24.335,24.32,23.13]
[1674252009889,9.5,24.335,24.321,17.96]
[1674252010099,10.0,24.344,24.322,20.0]
[1674252010309,10.0,24.344,24.323,0.96]
[1674252010637,10.0,24.344,24.323,41.43245624]
[1674252010853,30.82,24.343,24.323,0.96]
[1674252011043,30.82,24.343,24.3,23.13]
[1674252011257,30.83,24.335,24.301,20.0]
[1674252011472,10.0,24.334,24.301,53.5625396]
[1674252011808,33.4853,24.333,24.302,33.5625396]
[1674252011987,10.0,24.332,24.303,20.0]
[1674252012200,10.0,24.33,24.303,20.0]
[1674252012409,10.0,24.33,24.304,75.3725396]
[1674252012615,10.0,24.33,24.307,41.81]
[1674252012836,10.0,24.332,24.308,20.0]
[1674252013037,30.82,24.343,24.32,23.03]
[1674252013247,40.81,24.346,24.32,23.03]
[1674252013488,10.0,24.346,24.322,10.0]
[1674252013671,30.81,24.347,24.323,20.96]
[1674252013887,30.8,24.357,24.33,23.13]
[1674252014092,30.8,24.357,24.331,20.96]
[1674252014309,30.8,24.357,24.332,10.0]
[1674252014536,40.8,24.359,24.333,20.96]
[1674252014850,40.8,24.359,24.334,10.0]
[1674252015054,40.8,24.359,24.34,23.13]
[1674252015055,30.8,24.359,24.34,23.13]
[1674252015247,10.0,24.369,24.342,10.0]